[Event "Romanian Rapid Open 2022"]
[Site "Sebes"]
[Date "2022.12.02"]
[Round "1.28"]
[White "Daianu, Cristian-Clement"]
[Black "Apostu, Rares-Stefan"]
[Result "1-0"]
[ECO "C55"]
[WhiteElo "2189"]
[BlackElo "1331"]
[Annotator "TA"]
[PlyCount "69"]
[EventDate "2022.12.02"]
[EventType "rapid"]
[EventCountry "ROU"]
[SourceTitle "playchess.com"]
[Source "ChessBase"]
[SourceQuality "1"]
[TimeControl "600+5"]

{[%evp 14,68,16,10,21,3,48,56,91,95,140,109,128,122,123,122,194,187,193,183,201,214,254,269,247,247,259,260,376,395,483,213,195,123,586,588,588,577,835,831,854,857,850,845,833,822,805,771,877,865,937,774,6320,774,29998,29999,29999]} 1. e4 {[%emt 0:00:03]} e5 {[%emt 0:00:01]} 2. Nf3 {[%emt 0:00:03]} Nc6 {[%emt 0:00:02]} 3. Bc4 {[%emt 0:00:03]} Nf6 {[%emt 0:00:02]} 4. d3 {[%emt 0:00:02]} Be7 {[%emt 0:00:10]} 5. c3 {[%emt 0:00:17]} O-O {[%emt 0:00:12]} 6. O-O {[%emt 0:00:04]} d5 {[%emt 0:00:03]} 7. exd5 {[%emt 0:00:02]} Nxd5 {[%emt 0:00:02]} 8. Re1 {[%emt 0:00:06]} Bg4 {[%emt 0:00:25] C55: Two Knights: 4 d3, 4 d4 exd4 5 e5 and Max Lange Attack.} 9. h3 {[%emt 0:00:05]} Bxf3 {[%emt 0:00:24]} 10. Qxf3 {[%emt 0:00:02]} Nf6 {[%emt 0:00:09] White is slightly better.} 11. Nd2 {[%emt 0:00:12] White is more active.} Bc5 {[%emt 0:00:18]} 12. Nf1 {[%emt 0:00:07]} Re8 {[%emt 0:00:11][%cal Oe5e4]} 13. Ng3 {[%emt 0:00:02] [#] Inhibits e4. And now Nf5 would win.} Qd7 $146 {[%emt 0:01:04]} ({Predecessor:} 13... Rf8 14. Bg5 Be7 15. Nf5 a6 16. Nxe7+ Qxe7 17. Bxf6 Qxf6 18. Qxf6 gxf6 19. Bd5 Rad8 20. Bxc6 bxc6 {0-1 (52) Hollmann,L (1577)-Bayer,M (830) Bad Homburg 2013}) 14. Bg5 {[%emt 0:00:05] Against e4} Be7 {[%emt 0:00:37]} (14... e4 $16 15. Qf4 (15. dxe4 Ne5 $16) (15. Nxe4 Nxe4 16. dxe4 Ne5 $16) 15... Nd5 16. Bxd5 Qxd5) 15. Nf5 {[%emt 0:00:09]} e4 {[%emt 0:00:07]} 16. dxe4 {[%emt 0:00:28]} Ne5 {[%emt 0:00:18]} 17. Qe2 {[%emt 0:00:01] aiming for Rad1.} c6 {[%emt 0:00:49]} 18. Rad1 {[%emt 0:00:19]} Qc7 {[%emt 0:00:09]} 19. Bb3 {[%emt 0:00:01]} Rad8 {[%emt 0:00:19]} 20. Rd4 {[%emt 0:01:40]} c5 {[%emt 0:00:14]} (20... b5 {was called for.} 21. Red1 a6) 21. Rxd8 $18 {[%emt 0:00:06]} Rxd8 {[%emt 0:00:05]} 22. Nxe7+ {[%emt 0:00:13]} (22. f4 $142 Nc6 23. Qc4) 22... Qxe7 {[%emt 0:00:04]} 23. f4 {[%emt 0:00:33] Inhibits h6.} ({White should try} 23. Be3 $18) 23... c4 $2 {[%emt 0:01:29][%mdl 8192] Loses the game.} (23... Nd3 $16 {is tougher.}) 24. fxe5 {[%emt 0:00:06]} cxb3 {[%emt 0:00:07]} 25. exf6 {[%emt 0:00:07]} gxf6 {[%emt 0:00:07]} 26. Bh6 {[%emt 0:00:02] [#] Threatening mate with Qg4+.} Kh8 {[%emt 0:00:05]} 27. axb3 {[%emt 0:00:01]} Rg8 {[%emt 0:00:04]} 28. e5 {[%emt 0:00:11]} Qc5+ {[%emt 0:00:16]} 29. Qf2 {[%emt 0:00:01]} Qxf2+ {[%emt 0:00:23]} 30. Kxf2 {[%emt 0:00:02]} fxe5 {[%emt 0:00:07]} 31. Rxe5 {[%emt 0:00:03] KRB-KR} Rd8 {[%emt 0:00:02]} 32. Bg5 {[%emt 0:00:03]} Rd2+ {[%emt 0:00:07]} 33. Ke1 {[%emt 0:00:05] [#] White threatens Bf6+ and mate.} Rxb2 {[%emt 0:00:31]} 34. Bf6+ {[%emt 0:00:03]} Kg8 {[%emt 0:00:02]} 35. Re8# {[%emt 0:07:33] Weighted Error Value: White=0.30/Black=0.77} 1-0

[Event "Romanian Rapid Open 2022"]
[Site "Sebes"]
[Date "2022.12.02"]
[Round "1.30"]
[White "Teodorescu, Razvan"]
[Black "Draga, Laurentiu"]
[Result "1-0"]
[ECO "D45"]
[WhiteElo "2118"]
[BlackElo "1404"]
[Annotator "TA"]
[PlyCount "114"]
[EventDate "2022.12.02"]
[EventType "rapid"]
[EventCountry "ROU"]
[SourceTitle "playchess.com"]
[Source "ChessBase"]
[SourceQuality "1"]
[TimeControl "600+5"]

{[%evp 9,114,19,22,5,7,8,34,20,19,16,60,67,83,66,69,48,61,56,39,18,91,80,77,59,121,62,62,41,289,289,436,437,438,418,436,384,498,480,743,644,1015,951,1150,690,826,654,665,654,800,789,718,457,537,525,522,535,528,492,939,936,929,928,910,897,910,909,887,783,757,681,766,603,748,707,854,823,927,908,1058,998,2009,1921,1852,1223,1790,1693,1538,1585,2554,2133,2030,2026,1698,1746,29975,12840,12838,12839,7857,7316,2327,2040,29985,29982,29989,29988,12846]} 1. d4 {[%emt 0:00:03]} d5 {[%emt 0:00:02]} 2. c4 {[%emt 0:00:01]} c6 {[%emt 0:00:04]} 3. Nf3 {[%emt 0:00:03]} Nf6 {[%emt 0:00:03]} 4. Nc3 {[%emt 0:00:02]} e6 {[%emt 0:00:02]} 5. e3 {[%emt 0:00:05]} b6 {[%emt 0:00:02]} 6. Qc2 {[%emt 0:00:14] D45: Semi-Slav: 5 e3.} Bb7 {[%emt 0:00:13]} 7. Bd3 {[%emt 0:00:39] [#]} g6 $146 {[%emt 0:00:16]} ({Predecessor:} 7... Nbd7 8. O-O Bd6 9. e4 dxe4 10. Nxe4 Nxe4 11. Bxe4 h6 12. Be3 f5 13. Bd3 c5 14. d5 O-O 15. Rfe1 exd5 16. cxd5 {½-½ (37) Zajsek,F (2291)-Mirkowski,P (2369) ICCF email 2016}) 8. O-O {[%emt 0:00:06] White is slightly better.} Bg7 {[%emt 0:00:03]} 9. e4 {[%emt 0:00:35]} dxc4 {[%emt 0:00:26]} 10. Bxc4 {[%emt 0:00:03]} O-O {[%emt 0:00:10]} 11. Rd1 {[%emt 0:00:18] White is more active.} Qc7 {[%emt 0:00:11]} 12. h3 {[%emt 0:01:17]} Nbd7 {[%emt 0:02:46]} 13. e5 {[%emt 0:01:10] Inhibits c5.} Nd5 {[%emt 0:00:09]} 14. Bg5 {[%emt 0:00:33]} (14. Bxd5 {simplifies} cxd5 15. Bf4 a6 16. Qd2) 14... b5 {[%emt 0:01:30]} (14... Nxc3 $11 {keeps the balance.} 15. bxc3 (15. Qxc3 c5 $11) 15... h6) 15. Bxd5 {[%emt 0:00:39]} cxd5 {[%emt 0:00:21]} 16. Rac1 {[%emt 0:00:26]} (16. Qd2 $5 {[%cal Rc3b5]}) 16... Rfc8 {[%emt 0:00:06]} (16... Qa5 $14) 17. Qd2 {[%emt 0:00:24]} (17. Qb3 $16) 17... Qb6 $14 {[%emt 0:00:14]} 18. h4 {[%emt 0:00:24][%cal Oh4h5]} h6 $2 {[%emt 0:00:16] Prevents h5. Loses the game.} ({Black should play} 18... a5 $14) 19. Bxh6 $18 {[%emt 0:00:17]} a6 {[%emt 0:00:24]} (19... b4 {keeps fighting.}) 20. Bxg7 {[%emt 0:00:20]} Kxg7 {[%emt 0:00:02]} 21. h5 {[%emt 0:00:10]} Rh8 {[%emt 0:00:04]} 22. hxg6 {[%emt 0:00:06]} fxg6 {[%emt 0:00:02]} 23. Ne2 {[%emt 0:00:43]} Raf8 {[%emt 0:00:03]} (23... Qd8 $142 24. Qg5 Nf8) 24. Ng5 {[%emt 0:00:14]} Rh5 {[%emt 0:00:15]} 25. Ng3 {[%emt 0:00:16]} Rh4 {[%emt 0:00:08]} 26. Rc3 {[%emt 0:00:06][%cal Oc3c7] [#] Black must now prevent Rc7!} b4 {[%emt 0:00:21]} 27. Rf3 {[%emt 0:00:05]} Rxf3 {[%emt 0:00:10]} 28. Nxf3 {[%emt 0:00:01] Pair of Knights!} ({Less strong is} 28. gxf3 Nf8 29. Nf1 Qd8 $18) 28... Rh8 {[%emt 0:00:21]} 29. Qg5 {[%emt 0:00:09] Intending Qe7+ and mate.} Qd8 {[%emt 0:00:09] Against Qe7+} 30. Qg4 {[%emt 0:00:09]} Qe7 {[%emt 0:00:07]} 31. Ng5 {[%emt 0:00:16]} Nf8 {[%emt 0:00:03]} 32. Rd3 {[%emt 0:00:03]} Bc8 {[%emt 0:00:17]} 33. Rf3 {[%emt 0:00:03]} Rh6 {[%emt 0:01:17]} (33... Bd7 $142 34. Rf7+ Qxf7) 34. Rf7+ {[%emt 0:00:22]} Qxf7 {[%emt 0:00:02]} 35. Nxf7 {[%emt 0:00:01]} Kxf7 {[%emt 0:00:02]} 36. Qf4+ {[%emt 0:00:31]} Kg7 {[%emt 0:00:03]} 37. Nf1 {[%emt 0:00:17]} Nh7 {[%emt 0:00:51]} 38. Ne3 {[%emt 0:00:09]} Rh5 {[%emt 0:00:08]} 39. Qf3 {[%emt 0:00:32]} Bd7 {[%emt 0:00:09]} 40. Nc2 {[%emt 0:00:09]} a5 {[%emt 0:00:03]} 41. Qd3 {[%emt 0:00:11]} Ng5 {[%emt 0:00:07]} 42. f3 {[%emt 0:00:04]} a4 {[%emt 0:00:23]} 43. Nxb4 {[%emt 0:00:04]} Nf7 {[%emt 0:00:12]} 44. Na6 {[%emt 0:00:03]} Rg5 {[%emt 0:00:22]} 45. Nc5 {[%emt 0:00:08]} Bc8 {[%emt 0:00:12]} 46. Qd2 {[%emt 0:00:06]} Rh5 {[%emt 0:00:08]} 47. Qa5 {[%emt 0:00:10]} Rh8 {[%emt 0:00:16]} 48. Qxa4 {[%emt 0:00:09]} Nh6 {[%emt 0:00:09]} 49. Qc6 {[%emt 0:00:06]} Nf5 {[%emt 0:00:09]} 50. Nxe6+ {[%emt 0:00:15]} Bxe6 {[%emt 0:00:03]} 51. Qxe6 {[%emt 0:00:01] [#] Threatens to win with g4.} Nxd4 {[%emt 0:00:01]} 52. Qxd5 {[%emt 0:00:21] KQ-KRN} (52. Qf6+ $142 Kg8 53. Qxg6+ Kf8 54. Qf6+ Kg8 55. Qg5+ Kf7 56. Qf4+ Ke8 57. Qxd4) 52... Ne2+ {[%emt 0:00:02]} 53. Kf2 {[%emt 0:00:02]} Nf4 {[%emt 0:00:02]} 54. Qd7+ {[%emt 0:00:02]} Kh6 {[%emt 0:00:02]} 55. e6 {[%emt 0:00:07][%cal Be5e6,Be6e7][%mdl 32] White wants to mate with Qd4.} Rh7 {[%emt 0:00:07]} 56. e7 {[%emt 0:00:04]} Nd3+ {[%emt 0:00:07]} 57. Ke3 {[%emt 0:00:11]} Nxb2 {[%emt 0:00:05] Weighted Error Value: White=0.53/Black=0.79} 1-0

[Event "Romanian Rapid Open 2022"]
[Site "Sebes"]
[Date "2022.12.02"]
[Round "1.31"]
[White "Enachi, Florin"]
[Black "Nastase, Robert-Paul"]
[Result "0-1"]
[ECO "B84"]
[WhiteElo "1351"]
[BlackElo "2229"]
[Annotator "TA"]
[PlyCount "56"]
[EventDate "2022.12.02"]
[EventType "rapid"]
[EventCountry "ROU"]
[SourceTitle "playchess.com"]
[Source "ChessBase"]
[SourceQuality "1"]
[TimeControl "600+5"]

{[%evp 13,56,21,38,0,-4,-14,6,-46,-40,-42,-28,-24,-25,-10,-17,-111,-110,-113,-105,-125,-125,-133,-120,-152,-134,-139,-122,-115,-125,-141,-125,-287,-284,-360,-335,-335,-334,-577,-571,-649,-637,-924,-894,-1147,-1119]} 1. e4 {[%emt 0:00:02]} c5 {[%emt 0:00:03]} 2. Nf3 {[%emt 0:00:02]} d6 {[%emt 0:00:01]} 3. d4 {[%emt 0:00:03]} cxd4 {[%emt 0:00:01]} 4. Nxd4 {[%emt 0:00:03]} Nf6 {[%emt 0:00:01]} 5. Nc3 {[%emt 0:00:04]} a6 {[%emt 0:00:01]} 6. Be2 {[%emt 0:00:05]} e6 {[%emt 0:00:07]} 7. Be3 {[%emt 0:00:07]} Nbd7 {[%emt 0:00:05]} 8. a3 {[%emt 0:00:05] B84: Sicilian Scheveningen: 6 Be2 a6, lines without early Be3.} b5 {[%emt 0:00:10]} 9. Qd2 {[%emt 0:00:36]} Bb7 {[%emt 0:00:02] [#]} 10. Bg5 $146 {[%emt 0:00:37]} (10. f3 $11) ({Predecessor:} 10. f3 h5 11. O-O Rc8 12. a4 b4 13. Na2 d5 14. Nxb4 dxe4 15. Nxa6 exf3 16. Nxf3 {1-0 (34) Sjugirov,S (2663)-Gelman,A (2403) Chess.com INT 2021}) 10... Be7 {[%emt 0:00:01]} 11. O-O {[%emt 0:00:10]} Nxe4 {[%emt 0:00:30]} 12. Nxe4 {[%emt 0:00:57]} Bxe4 {[%emt 0:00:02]} 13. Bxe7 {[%emt 0:00:25]} Qxe7 {[%emt 0:00:01]} 14. Bf3 {[%emt 0:00:54]} (14. a4 $11) 14... Bxf3 $17 {[%emt 0:00:03]} 15. Nxf3 {[%emt 0:00:04]} O-O {[%emt 0:00:05]} 16. Rad1 {[%emt 0:00:43]} d5 {[%emt 0:00:02]} 17. Rfe1 {[%emt 0:00:04]} Qf6 {[%emt 0:00:05]} 18. Qd4 {[%emt 0:00:29]} Rfc8 {[%emt 0:00:14]} 19. c3 {[%emt 0:00:19]} Rc4 {[%emt 0:00:27]} 20. Qxf6 {[%emt 0:00:15]} gxf6 {[%emt 0:00:03]} (20... Nxf6 {simplifies} 21. Ne5 Rcc8 22. f3 Kf8) 21. Rd4 {[%emt 0:00:15]} Rac8 {[%emt 0:00:04]} 22. Rxc4 $2 {[%emt 0:00:55] [#] White does not recover from this.} (22. Rdd1 $17) 22... bxc4 {[%emt 0:00:04][%cal Bb5c4,Bc4b3,Bb3b2][%mdl 4128] Endgame KRN-KRN} ({And not} 22... dxc4 23. g3 $17) ({Not} 22... Rxc4 23. Nd4 $17) 23. Nd4 {[%emt 0:00:28]} Rb8 {[%emt 0:00:03]} 24. Rb1 {[%emt 0:00:05]} Nc5 {[%emt 0:00:08]} 25. b4 $2 {[%emt 0:00:18]} (25. f3 {might work better.}) 25... cxb3 $19 {[%emt 0:00:02] [#] ...b2 is the strong threat. Black is clearly winning.} 26. Nc6 {[%emt 0:00:22] Inhibits b2.} Rb6 {[%emt 0:00:05]} 27. Nd4 {[%emt 0:02:13]} b2 {[%emt 0:00:06]} 28. Kf1 {[%emt 0:00:15]} Ne4 {[%emt 0:09:49] Weighted Error Value: White=0.75/Black=0.08 (flawless)} 0-1

[Event "Romanian Rapid Open 2022"]
[Site "Sebes"]
[Date "2022.12.02"]
[Round "1.32"]
[White "Vrencian, Lehel"]
[Black "Tatar, Marius Lucian"]
[Result "0-1"]
[ECO "C91"]
[WhiteElo "2226"]
[BlackElo "1405"]
[Annotator "TA"]
[PlyCount "77"]
[EventDate "2022.12.02"]
[EventType "rapid"]
[EventCountry "ROU"]
[SourceTitle "playchess.com"]
[Source "ChessBase"]
[SourceQuality "1"]
[TimeControl "600+5"]

{[%evp 23,77,62,57,23,20,37,33,34,28,11,55,0,38,15,96,83,103,109,163,164,153,93,106,83,129,87,152,149,147,73,175,173,178,180,197,78,84,75,77,75,177,91,299,114,106,0,0,27,221,227,242,194,433,412,491,475]} 1. e4 {[%emt 0:00:03]} e5 {[%emt 0:00:01]} 2. Nf3 {[%emt 0:00:02]} Nc6 {[%emt 0:00:02]} 3. Bb5 {[%emt 0:00:02]} a6 {[%emt 0:00:01]} 4. Ba4 {[%emt 0:00:01]} b5 {[%emt 0:00:02]} 5. Bb3 {[%emt 0:00:01]} Bb7 {[%emt 0:00:00]} 6. O-O {[%emt 0:00:24]} Be7 {[%emt 0:00:08]} 7. d4 {[%emt 0:00:28]} d6 {[%emt 0:00:04]} 8. c3 {[%emt 0:00:29]} Nf6 {[%emt 0:00:06]} 9. Re1 {[%emt 0:00:02]} O-O {[%emt 0:00:05]} 10. Nbd2 {[%emt 0:00:03]} h6 {[%emt 0:00:38]} 11. Nf1 {[%emt 0:00:10]} Re8 {[%emt 0:00:28]} 12. Ng3 {[%emt 0:00:19]} Bf8 {[%emt 0:00:11]} 13. a3 {[%emt 0:03:00] C91: Closed Ruy Lopez: 7...d6 8 c3 0-0 9 d4.} Na5 {[%emt 0:01:20]} 14. Bc2 {[%emt 0:00:02]} Nc4 {[%emt 0:00:58]} 15. a4 {[%emt 0:00:30] White is slightly better.} Nb6 {[%emt 0:01:14]} 16. b3 {[%emt 0:02:45]} Nbd7 {[%emt 0:03:27] [#]} 17. Bd3 $146 {[%emt 0:00:15]} (17. h3 $14) ({Predecessor:} 17. d5 c6 18. c4 bxc4 19. bxc4 cxd5 20. cxd5 Nc5 21. Be3 Nfd7 22. Nd2 g6 23. Nb3 {½-½ (23) Liang,J (2470)-Zaw,W (2565) Yangon 1999}) 17... bxa4 {[%emt 0:00:42]} 18. bxa4 {[%emt 0:00:15]} c5 {[%emt 0:00:12]} (18... a5 $11 {remains equal.}) 19. d5 $1 $16 {[%emt 0:00:32]} Qa5 {[%emt 0:00:44]} 20. Qc2 {[%emt 0:00:56]} Nb6 {[%emt 0:00:11]} (20... Qc7 $16) 21. Nd2 $18 {[%emt 0:00:19]} c4 {[%emt 0:00:27] Prevents Nb3.} 22. Bxc4 {[%emt 0:00:02]} ({Don't do} 22. Nxc4 Nxc4 23. Bxc4 Rec8 $16) (22. Bf1 $142) 22... Nxc4 $16 {[%emt 0:00:09]} 23. Nxc4 {[%emt 0:00:01]} Qc5 {[%emt 0:00:01]} (23... Qc7 $142) 24. Qb3 {[%emt 0:00:28]} Rab8 {[%emt 0:00:22]} ({Black should try} 24... Rac8) 25. Be3 $1 {[%emt 0:00:01]} Qc7 {[%emt 0:00:21][%cal Ob7d5] aiming for ...Bxd5!} 26. Bb6 {[%emt 0:00:19]} ({Better is} 26. Nb6 $1) 26... Qd7 {[%emt 0:00:06]} (26... Bxd5 $16 27. exd5 (27. Bxc7 Rxb3 28. Nxd6 Bxd6 $14) 27... Rec8) 27. a5 $18 {[%emt 0:00:03]} Rec8 {[%emt 0:00:03][%cal Of6e4] [#]} 28. Nd2 {[%emt 0:00:14]} Qb5 {[%emt 0:00:22] [#]} 29. Qxb5 {[%emt 0:00:25]} (29. Qc2 $1 $18 {has better winning chances.}) 29... axb5 $16 {[%emt 0:00:00]} 30. Ra3 {[%emt 0:00:00]} Nd7 {[%emt 0:00:00]} 31. Be3 {[%emt 0:00:08] Strongly threatening a6.} Nc5 {[%emt 0:00:00] Against a6} (31... Ba6 $16 {might work better.}) 32. Rb1 {[%emt 0:00:17]} (32. Bxc5 $18 Rxc5 33. a6) 32... Ba8 $2 {[%emt 0:00:09]} (32... Ba6 $16) 33. Nb3 $2 {[%emt 0:00:07]} (33. f3 $18) 33... Na4 {[%emt 0:00:05]} 34. Ne2 {[%emt 0:00:05]} (34. a6 $16 {Black must now prevent a7.} Nxc3 35. Rba1) 34... Nxc3 $11 {[%emt 0:00:03]} 35. Nxc3 {[%emt 0:00:04]} Rxc3 {[%emt 0:00:01]} (35... b4 $11 {and Black is okay.} 36. Raa1 bxc3) 36. a6 $18 {[%emt 0:00:03]} Rbc8 {[%emt 0:00:07]} 37. Bd2 {[%emt 0:00:05]} Rd3 {[%emt 0:00:09]} (37... R3c4 {is a better defense.}) 38. Kf1 {[%emt 0:00:03]} Rc2 {[%emt 0:00:08]} 39. Ra5 {[%emt 0:00:00][%mdl 32768] Weighted Error Value: White=0.33/Black=0.58. Loss on time!?} 0-1

[Event "Romanian Rapid Open 2022"]
[Site "Sebes"]
[Date "2022.12.02"]
[Round "1.33"]
[White "Sida, Flavia-Maria"]
[Black "Creanga, Robert-Ionut"]
[Result "0-1"]
[ECO "E11"]
[WhiteElo "1410"]
[BlackElo "2190"]
[Annotator "TA"]
[PlyCount "66"]
[EventDate "2022.12.02"]
[EventType "rapid"]
[EventCountry "ROU"]
[SourceTitle "playchess.com"]
[Source "ChessBase"]
[SourceQuality "1"]
[TimeControl "600+5"]

{[%evp 10,65,9,12,11,14,15,4,6,-16,-24,-33,0,-23,-2,-13,-10,-29,0,-31,-31,-21,-27,-21,-27,-79,-71,-88,-68,-68,-60,-102,-96,-89,-75,-132,-132,-166,-158,-183,-125,-122,-120,-118,-111,-179,-170,-166,-183,-217,-194,-377,-370,-994,-957,-29980,-29981,-29999]} 1. d4 {[%emt 0:00:02]} Nf6 {[%emt 0:00:05]} 2. Nf3 {[%emt 0:00:05]} e6 {[%emt 0:00:14]} 3. c4 {[%emt 0:00:09]} Bb4+ {[%emt 0:01:03]} 4. Bd2 {[%emt 0:00:57]} Qe7 {[%emt 0:00:05]} 5. Qb3 {[%emt 0:02:30]} Bxd2+ {[%emt 0:01:41]} 6. Nbxd2 {[%emt 0:00:02]} d6 {[%emt 0:00:39] E11: Bogo-Indian.} 7. g3 {[%emt 0:00:14]} O-O {[%emt 0:00:34]} 8. Bg2 {[%emt 0:00:15]} e5 {[%emt 0:00:25] The position is equal.} 9. dxe5 {[%emt 0:03:05]} dxe5 {[%emt 0:00:05]} 10. O-O {[%emt 0:00:27]} c6 {[%emt 0:01:46] [#]} 11. Qe3 $146 {[%emt 0:01:09]} ({Predecessor:} 11. Rfd1 Nbd7 12. Nf1 a5 13. Ne3 Nc5 14. Qc3 Re8 15. b3 g6 16. Nd2 Nfd7 17. a3 {0-1 (73) Parnali,S (2219)-Lajthajm,B (2414) Backi Petrovac 2016}) 11... Nbd7 {[%emt 0:00:33]} 12. h3 {[%emt 0:00:14]} h6 {[%emt 0:00:24]} 13. Rac1 {[%emt 0:00:32]} Re8 {[%emt 0:00:27]} 14. Ne4 {[%emt 0:00:42]} Nxe4 {[%emt 0:00:15]} 15. Qxe4 {[%emt 0:00:03]} Nc5 {[%emt 0:00:48]} 16. Qe3 {[%emt 0:00:14]} a5 {[%emt 0:00:09][%cal Ba7a5,Ba5a4][%mdl 32]} 17. a3 {[%emt 0:00:14] [#]} (17. Nd2 $11 {keeps the balance.}) 17... a4 $1 $17 {[%emt 0:00:18]} 18. Nd2 {[%emt 0:00:01]} Bf5 {[%emt 0:00:09]} 19. g4 {[%emt 0:00:18]} Bg6 {[%emt 0:00:09]} 20. Ne4 {[%emt 0:00:02] Inhibits f5.} Bxe4 {[%emt 0:00:10]} 21. Bxe4 {[%emt 0:00:02]} Rad8 {[%emt 0:00:27][%cal Oh6h5,Ba8d8,Bd8d4,Bd4d2][%mdl 32]} 22. Rc3 {[%emt 0:00:13]} (22. Bc2 $142) 22... Rd4 {[%emt 0:00:09]} 23. Bg2 {[%emt 0:00:09]} Qe6 {[%emt 0:00:28]} 24. f4 {[%emt 0:00:08]} Re7 {[%emt 0:00:42]} ({Don't do} 24... Rxc4 25. Rxc4 Qxc4 26. Rc1 $16 (26. fxe5 Nd7 $17)) (24... Qd6 $19 25. Rc2 Nb3) 25. fxe5 {[%emt 0:00:08]} Qxe5 {[%emt 0:00:02]} 26. Qxe5 {[%emt 0:00:08]} Rxe5 {[%emt 0:00:01]} 27. e3 {[%emt 0:00:03]} (27. Bf3 $17) 27... Rd2 $19 {[%emt 0:00:32]} 28. Rf2 {[%emt 0:00:02]} Rd1+ {[%emt 0:00:00]} 29. Kh2 {[%emt 0:00:22]} Re1 {[%emt 0:00:00]} 30. Rf3 $2 {[%emt 0:00:00] [#]} (30. e4) 30... Re2 {[%emt 0:00:00]} 31. Kg3 $2 {[%emt 0:00:00]} (31. e4) 31... Ne4+ {[%emt 0:00:00]} 32. Kf4 {[%emt 0:00:00]} f6 {[%emt 0:00:00][%csl Ge4,Ge5,Gf6,Gh6][%cal Rg7g5]} 33. Bf1 {[%emt 0:00:08]} g5# {[%emt 0:00:02] Weighted Error Value: White=0.60/Black=0.08 (flawless)} 0-1

[Event "Romanian Rapid Open 2022"]
[Site "Sebes"]
[Date "2022.12.02"]
[Round "1.35"]
[White "Calugareanu, Ioana-Denisa"]
[Black "Ciolacu, Alessia-Mihaela"]
[Result "0-1"]
[ECO "E14"]
[WhiteElo "1396"]
[BlackElo "2097"]
[Annotator "TA"]
[PlyCount "50"]
[EventDate "2022.12.02"]
[EventType "rapid"]
[EventCountry "ROU"]
[SourceTitle "playchess.com"]
[Source "ChessBase"]
[SourceQuality "1"]
[TimeControl "600+5"]

{[%evp 14,50,21,-17,-8,-18,-18,-7,-8,-73,-43,-62,-69,-66,-54,-41,-40,-51,-56,-50,-54,-79,-78,-76,-75,-71,-83,-64,-72,-79,-67,-70,-64,-166,-20,-756,-658,-3144,-2609]} 1. d4 {[%emt 0:00:01]} Nf6 {[%emt 0:00:03]} 2. c4 {[%emt 0:00:04]} e6 {[%emt 0:00:02]} 3. Nf3 {[%emt 0:00:19]} d5 {[%emt 0:01:35]} 4. e3 {[%emt 0:00:42]} Be7 {[%emt 0:00:34]} 5. Bd3 {[%emt 0:00:27]} O-O {[%emt 0:01:32]} 6. O-O {[%emt 0:00:04]} b6 {[%emt 0:00:13]} 7. Nc3 {[%emt 0:00:25]} Bb7 {[%emt 0:00:11]} 8. Re1 {[%emt 0:00:43]} dxc4 {[%emt 0:00:53] E14: Queen's Indian: Classical Variation (4 e3).} 9. Bxc4 {[%emt 0:00:09]} c5 {[%emt 0:00:03]} 10. dxc5 {[%emt 0:06:54]} Bxc5 {[%emt 0:00:04] [#] The position is equal.} 11. Nd4 $146 {[%emt 0:00:33]} (11. a3 $11 {remains equal.}) ({Predecessor:} 11. Qxd8 Rxd8 12. b3 Nbd7 13. Bb2 a6 14. Red1 b5 15. Be2 Rac8 16. Rac1 Be7 17. h3 h6 18. Ne1 Nc5 19. Rxd8+ Bxd8 20. b4 Ncd7 21. Nd3 {½-½ (21) Horvath,J (1941)-Meneghetti,J (1942) ICCF email 2020}) 11... Qe7 {[%emt 0:00:23]} (11... a6 {looks sharper.} 12. Be2 Qc7 13. Bd2 Rd8) 12. Qe2 {[%emt 0:00:14]} Rd8 {[%emt 0:00:17]} 13. Rd1 {[%emt 0:00:10]} a6 {[%emt 0:00:24]} 14. a3 {[%emt 0:00:08]} b5 {[%emt 0:00:09]} (14... Qc7 {keeps more tension.} 15. Bd2 b5 16. Ba2 Nc6) 15. Ba2 {[%emt 0:00:09]} Nc6 {[%emt 0:00:36]} (15... Qc7 {with more complications.} 16. Bd2 Bxd4 17. exd4 Rxd4 18. Bg5 Rg4) 16. Nxc6 {[%emt 0:00:03]} Bxc6 {[%emt 0:00:03]} 17. b4 {[%emt 0:00:04] Inhibits a5.} Rxd1+ {[%emt 0:00:42]} 18. Qxd1 {[%emt 0:00:01]} Rd8 {[%emt 0:00:03]} 19. Qe2 {[%emt 0:00:01]} Bb6 $36 {[%emt 0:00:02][%mdl 2048] Black is on the roll.} 20. Bb2 {[%emt 0:00:01]} Qb7 {[%emt 0:00:06] Black is more active.} 21. f3 {[%emt 0:00:29]} h5 {[%emt 0:00:40]} 22. Kh1 {[%emt 0:00:07]} h4 {[%emt 0:00:09][%cal Oh4h3]} 23. e4 {[%emt 0:00:01] Prevents h3.} ({Better is} 23. Rd1 $15) 23... Bd4 {[%emt 0:00:52]} (23... Qb8 $19 {Hoping for ...Qf4.} 24. Re1 Qf4) 24. h3 $2 {[%emt 0:00:08][%mdl 8192] [#]} (24. Rd1 $11) 24... Nh5 $19 {[%emt 0:00:13]} 25. Rd1 {[%emt 0:00:03]} Ng3+ {[%emt 0:00:02] Weighted Error Value: White=0.86/Black=0.18 (very precise)} 0-1